Cogmind - Beta 13 *** ADVENTURER MODE // 2024.04.26 @ 00:37:17 Player: korwo Result: Self-destructed Performance ------------- Evolutions (1) 500 Regions Visited (4) 800 Robots Destroyed (16) 80 Value Destroyed (321) 321 Prototype IDs (1) 20 Alien Tech Used (0) 0 Bonus (0) 0 TOTAL SCORE: 1721 Bonus ------- None Cogmind --------- Core Integrity 39/400 Matter 295/300 Energy 100/100 System Corruption 6% Temperature Cool (46) Movement Core (50) Location -9/Mines Parts ------- > --- POWER (2) -------- (None) > --- PROPULSION (2) --- (None) > --- UTILITY (2) ------ (None) > --- WEAPON (3) ------- (None) > --- INVENTORY (5) ---- Heat Sink Small Storage Unit Structural Scanner Peak State ------------ > --- POWER ------------ (None) > --- PROPULSION ------- (None) > --- UTILITY ---------- ECM Suite Light Armor Plating > --- WEAPON ----------- Improved Assault Rifle Improved Assault Rifle Improved Assault Rifle > --- INVENTORY -------- Heat Sink Small Storage Unit Structural Scanner Signal Interpreter Medium Laser [Rating: 11] Favorites ----------- Power Light Ion Engine Engine Light Ion Engine Propulsion Wheel Treads Light Treads Wheel Wheel Utility ECM Suite Device ECM Suite Protection Light Armor Plating Weapon Light Assault Rifle Energy Gun Medium Laser Ballistic Gun Light Assault Rifle Build | -11 -10 -10 -9 -9 ------- Run | Yrd Mat Min Mat Min Slots Evolved 2 | . . . 2 . Power 1 | . . . 1 . Propulsion . | . . . . . Utility . | . . . . . Weapon 1 | . . . 1 . Parts Attached 14 | 7 1 . 5 1 Power 1 | 1 . . . . Engine 1 | 1 . . . . Core . | . . . . . Reactor . | . . . . . Propulsion 3 | 2 . . 1 . Treads 1 | . . . 1 . Leg . | . . . . . Wheel 2 | 2 . . . . Hover . | . . . . . Flight . | . . . . . Utility 2 | . 1 . 1 . Device 1 | . 1 . . . Storage . | . . . . . Processor . | . . . . . Hackware . | . . . . . Protection 1 | . . . 1 . Artifact . | . . . . . Weapon 8 | 4 . . 3 1 Energy Gun 2 | 1 . . . 1 Energy Cannon . | . . . . . Ballistic Gun 6 | 3 . . 3 . Ballistic Cannon . | . . . . . Launcher . | . . . . . Special Weapon . | . . . . . Impact Weapon . | . . . . . Slashing Weapon . | . . . . . Piercing Weapon . | . . . . . Special Melee Weapon . | . . . . . Unidentified Prototypes 1 | . . . 1 . Parts Lost 11 | . . 4 2 5 Power 1 | . . 1 . . Propulsion 2 | . . 2 . . Utility 2 | . . . 1 1 Weapon 6 | . . 1 1 4 Highest Loss Streak 5 | . . 4 1 5 To Critical Strikes . | . . . . . Average Slot Usage (%) 55 | . 83 56 36 31 Engine 5 | . 14 7 . . Treads 2 | . . . 3 7 Wheel 11 | . 28 9 . . Device 10 | . 12 14 11 3 Protection 1 | . . . 4 . Ballistic Gun 22 | . 28 25 17 20 Naked Turns 5 | . . . . 5 Heaviest Build 11 | 5 7 7 11 11 Greatest Support 20 | 20 20 20 20 20 Greatest Overweight (x) 3 | . . 1 3 . Average Overweight (x) . | . . . . . Largest Inventory Capacity 5 | 5 5 5 5 5 Average Capacity 5 | 5 5 5 5 5 Most Carried 5 | 3 3 2 5 4 Average Carried 2 | . 2 2 4 3 Final Capacity 5 | 5 5 5 5 5 Final Carried 4 | 2 2 2 4 3 Class Distribution -------------------- 76% | Mutant 23% | Gunner Dominant Class ---------------- Mutant | -10/Materials Mutant | -10/Mines Gunner | -9/Materials Mutant | -9/Mines Resources | -11 -10 -10 -9 -9 ----------- Run | Yrd Mat Min Mat Min Matter Collected 507 | 280 42 . 135 50 Remotely . | . . . . . Salvage Created 454 | 39 91 17 226 81 Parts 36 | 1 9 . 19 7 Haulers Intercepted . | . . . . . Recyclers Shooed . | . . . . . Parts Field Recycled . | . . . . . Retrieved Matter . | . . . . . Parts Self-Destructed . | . . . . . Prevented . | . . . . . Kills | -11 -10 -10 -9 -9 ------- Run | Yrd Mat Min Mat Min Combat Hostiles Destroyed 17 | 1 6 1 4 5 Guns 17 | 1 6 1 4 5 Classes Destroyed 5 | 1 1 . 2 1 Watcher 1 | . . . 1 . Swarmer 10 | . 6 1 . 3 Grunt 3 | 1 . . 2 . Sentry 2 | . . . 2 . Assembled 2 | . . . . 2 Best Kill Streak 4 | 1 3 1 4 4 Combat Bots Only 4 | 1 3 1 4 4 Max Kills in Single Turn 2 | 1 1 1 1 2 Gunslinging 1 | . . . . 1 Exploded . | . . . . . Melee . | . . . . . Uniques/NPCs Destroyed . | . . . . . Combat | -11 -10 -10 -9 -9 -------- Run | Yrd Mat Min Mat Min Hostile Shots Fired 178 | 6 52 35 39 46 Missed 51 | 2 20 11 8 10 Damage Taken 1535 | 34 196 219 435 651 Core 507 | 17 39 90 211 150 Absorbed by Shields . | . . . . . Ignored by Resistances 453 | 11 65 68 128 181 Core Remaining (%) 67 | 93 . 41 . . Volleys Fired 50 | 5 20 6 11 8 Largest 3 | 2 2 2 3 3 Hottest 69 | 40 40 40 69 69 Shots Fired 114 | 10 40 12 33 19 Gun 114 | 10 40 12 33 19 Cannon . | . . . . . Launcher . | . . . . . Special . | . . . . . Kinetic 113 | 10 40 12 33 18 Thermal 1 | . . . . 1 Explosive . | . . . . . Electromagnetic . | . . . . . Robot Hit Streak 8 | 7 6 3 8 8 Robot Miss Streak 3 | 1 3 2 2 2 Penetration Max . | . . . . . Secondary Targets 7 | . 2 . 1 4 Max Gunslinging Chain 1 | . 1 . 1 1 Shots Hit Robots 81 | 9 23 9 26 14 Core Hits 38 | 3 11 5 10 9 Critical Kills 1 | . 1 . . . Critical Parts Destroyed 1 | . 1 . . . Critical Strikes 2 | . 2 . . . Destroy 2 | . 2 . . . Melee Attacks . | . . . . . Impact . | . . . . . Slashing . | . . . . . Piercing . | . . . . . Sneak Attacks . | . . . . . Combat Hostiles . | . . . . . Follow-up Attacks . | . . . . . Damage Inflicted 944 | 69 174 86 399 216 Guns 941 | 69 174 83 399 216 Cannons . | . . . . . Explosions . | . . . . . Melee . | . . . . . Ramming 3 | . . 3 . . Kinetic 941 | 69 174 83 399 216 Thermal . | . . . . . Explosive . | . . . . . Electromagnetic . | . . . . . Impact . | . . . . . Slashing . | . . . . . Piercing . | . . . . . Highest Corruption 6 | . . . . 6 Average Corruption 3 | . . . . 3 Corruption Purged . | . . . . . Corruption Blocked . | . . . . . Effects 1 | . . . . 1 Matter Fused 1 | . . . . 1 Overload Shots . | . . . . . Overflow Damage . | . . . . . Projectiles . | . . . . . Explosions . | . . . . . Melee . | . . . . . Knockbacks . | . . . . . Impact . | . . . . . Kinetic . | . . . . . Secondary . | . . . . . Self-Inflicted Damage 1 | . . 1 . . Shots . | . . . . . Rammed 2 | . . 2 . . Targets Rammed 2 | . . 2 . . Kicked . | . . . . . Crushed . | . . . . . Highest Temperature 46 | 12 . 18 39 46 Average Temperature 12 | 7 . 10 14 15 Received Heat Transfer 627 | 24 6 132 225 240 Siege Activations . | . . . . . Robots Corrupted . | . . . . . Combat Hostiles . | . . . . . Parts Fried . | . . . . . Impact Corruptions . | . . . . . Robots Melted . | . . . . . Combat Hostiles . | . . . . . Parts Melted . | . . . . . Heat Transferred . | . . . . . Parts Sabotaged . | . . . . . Parts Stolen . | . . . . . Parts Stripped . | . . . . . Power Chain Reactions . | . . . . . Alert | -11 -10 -10 -9 -9 ------- Run | Yrd Mat Min Mat Min Peak Influence 198 | 20 185 91 198 134 Initial 64 | . 11 61 26 64 Average 77 | 3 72 70 99 113 Maximum Alert Level . | . . . . . Low Security (%) 100 | 100 100 100 100 100 Level 1 . | . . . . . Level 2 . | . . . . . Level 3 . | . . . . . Level 4 . | . . . . . Level 5 . | . . . . . High Security . | . . . . . Max Security . | . . . . . Squads Dispatched . | . . . . . Investigation . | . . . . . Extermination . | . . . . . Reinforcement . | . . . . . Assault . | . . . . . Garrison . | . . . . . Intercept . | . . . . . Searches Triggered . | . . . . . Construction Impeded . | . . . . . Haulers Reinforced . | . . . . . Active Scanning Responses . | . . . . . Cargo Convoy Interrupts . | . . . . . Stealth | -11 -10 -10 -9 -9 --------- Run | Yrd Mat Min Mat Min Distress Signals 2 | . 1 . 1 . Communications Jammed . | . . . . . Distress Signals . | . . . . . Times Spotted 48 | 1 10 7 8 22 Peak Tracking Total 14 | 1 6 6 6 14 Tactical Retreats 5 | . 1 1 2 1 Traps | -11 -10 -10 -9 -9 ------- Run | Yrd Mat Min Mat Min Traps Triggered 1 | . . . 1 . Indirectly . | . . . . . Trap Hack Attempts . | . . . . . Triggered . | . . . . . Disarmed 6 | . 6 . . . Reprogrammed . | . . . . . Reused . | . . . . . Traps Extracted . | . . . . . Installed . | . . . . . Triggered . | . . . . . Machines | -11 -10 -10 -9 -9 ---------- Run | Yrd Mat Min Mat Min Machines Disabled . | . . . . . Max in Single Turn . | . . . . . Machines Repaired . | . . . . . Machines Dismantled . | . . . . . Machines Sabotaged . | . . . . . Overloaded Fab Kills . | . . . . . Hacking | -11 -10 -10 -9 -9 --------- Run | Yrd Mat Min Mat Min Machines Accessed 5 | . 4 . 1 . Terminals 5 | . 4 . 1 . Fabricators . | . . . . . Repair Stations . | . . . . . Recycling Units . | . . . . . Scanalyzers . | . . . . . Garrison Access . | . . . . . Total Hacks 7 | . 5 . 2 . Successful 2 | . 2 . . . Failed 5 | . 3 . 2 . Catastrophic 1 | . . . 1 . Database Lockouts . | . . . . . Manual 1 | . . . 1 . Terminals 7 | . 5 . 2 . Fabricators . | . . . . . Repair Stations . | . . . . . Recycling Units . | . . . . . Scanalyzers . | . . . . . Garrison Access . | . . . . . Terminal Hacks 2 | . 2 . . . Disarm Traps 1 | . 1 . . . Hauler Manifests 1 | . 1 . . . Fabricator Hacks . | . . . . . Repair Station Hacks . | . . . . . Recycling Unit Hacks . | . . . . . Scanalyzer . | . . . . . Garrison Access Hacks . | . . . . . Unauthorized Hacks . | . . . . . Terminals . | . . . . . Fabricators . | . . . . . Repair Stations . | . . . . . Recycling Units . | . . . . . Scanalyzers . | . . . . . Garrison Access . | . . . . . Data Cores Recovered . | . . . . . Used . | . . . . . Hacking Detections 3 | . 2 . 1 . Full Trace Events 1 | . . . 1 . Feedback Events . | . . . . . Feedback Blocked . | . . . . . Robot Schematics Acquired . | . . . . . Robots Built . | . . . . . Authchips . | . . . . . Time . | . . . . . Total Robot Build Rating . | . . . . . Part Schematics Acquired . | . . . . . Parts Built . | . . . . . Authchips . | . . . . . Time . | . . . . . Total Part Build Rating . | . . . . . Parts Repaired . | . . . . . Time . | . . . . . Parts Recycled . | . . . . . Recycled Matter . | . . . . . Retrieved Matter . | . . . . . Retrieved Components . | . . . . . Parts Scanalyzed . | . . . . . Part Schematics Acquired . | . . . . . Parts Damaged . | . . . . . Bothacking | -11 -10 -10 -9 -9 ------------ Run | Yrd Mat Min Mat Min Used RIF Installer . | . . . . . Robots Hacked . | . . . . . Non-combat . | . . . . . Combat . | . . . . . Robot Hacks Applied . | . . . . . Relay Couplers Released . | . . . . . Fabnet Peak Effective % . | . . . . . Robots Rewired . | . . . . . Allies Hacked . | . . . . . Hacks Repelled . | . . . . . Allies | -11 -10 -10 -9 -9 -------- Run | Yrd Mat Min Mat Min Total Allies . | . . . . . Largest Group . | . . . . . Highest-Rated Group . | . . . . . Highest-Rated Ally . | . . . . . Total Orders . | . . . . . Ally Attacks . | . . . . . Total Damage . | . . . . . Kills . | . . . . . Allies Corrupted . | . . . . . Allies Melted . | . . . . . Intel | -11 -10 -10 -9 -9 ------- Run | Yrd Mat Min Mat Min Robot Analysis Total . | . . . . . Derelict Logs Recovered 1 | . . 1 . . Drone Launches . | . . . . . Drone Recoveries . | . . . . . Exploration | -11 -10 -10 -9 -9 ------------- Run | Yrd Mat Min Mat Min Turns Passed 670 | 85 222 53 257 53 Spaces Moved 546 | 80 202 42 198 24 Core 211 | 23 . 19 156 13 Treads 53 | . . . 42 11 Legs . | . . . . . Wheels 282 | 57 202 23 . . Hover . | . . . . . Flight . | . . . . . Fastest Speed 50 | 50 80 50 50 50 Average Speed 88 | 71 80 84 103 100 Slowest Speed 200 | 80 80 100 200 160 Overloaded Moves . | . . . . . Propulsion Burnouts . | . . . . . Robots Hopped . | . . . . . Cave-ins Triggered . | . . . . . Exploration Rate (%) 18 | 5 42 13 25 8 Regions Visited 4 Branch Regions 2 Pre-discovered Areas . | . . . . . Known Exits Taken 1 | . . 1 . . Unknown Exits Taken 3 | 1 1 . 1 . Scrap Searched . | . . . . . Spaces Dug . | . . . . . Terrain Destroyed . | . . . . . Melee . | . . . . . Projectile . | . . . . . AOE . | . . . . . Terrain Rammed . | . . . . . Walls Destroyed . | . . . . . Machines Disabled . | . . . . . Actions | -11 -10 -10 -9 -9 --------- Run | Yrd Mat Min Mat Min Total 637 | 98 230 49 224 36 Wait 16 | . 7 . 6 3 Move 542 | 79 201 41 197 24 Hop . | . . . . . Pick Up 12 | 7 1 . 4 . Fast Attach 4 | . . . 4 . Attach 8 | 5 1 . 1 1 Detach . | . . . . . Swap 2 | 2 . . . . Drop 1 | . . . 1 . Fire 50 | 5 20 6 11 8 Melee . | . . . . . Ram 2 | . . 2 . . Kick . | . . . . . Crush . | . . . . . Escape Stasis . | . . . . . Rewire . | . . . . . Trap . | . . . . . Miscellaneous . | . . . . . Route ------- -11/Scrapyard -10/Materials -10/Mines (discovered 2 exits: *Mat x2) -9/Materials (discovered 2 exits: [*Mat] / [*Min]) -9/Mines History --------- Turn | Location | Event 2 | -11/Scrapyard | Met Revision 17 57 | -11/Scrapyard | Discovered new exit (range 8) 86 | -11/Scrapyard | Entered Materials 301 | -10/Materials | Discovered new exit (range 9) 302 | -10/Materials | Build established: Mutant 308 | -10/Materials | Entered Mines 337 | -10/Mines | Identified exit to Materials 357 | -10/Mines | Core integrity fell below 50% 358 | -10/Mines | Discovered exit to Materials (range 5) 361 | -10/Mines | Entered Materials 361 | -9/Materials | Evolved 2 slots: Power x1, Weapon x1 389 | -9/Materials | Lost 4 parts (1p2n1w) 436 | -9/Materials | Discovered new exit (range 10) 522 | -9/Materials | Core integrity fell below 50% 592 | -9/Materials | Discovered new exit (range 14) 618 | -9/Materials | Entered Mines 619 | -9/Mines | Assembled infested the area 624 | -9/Mines | Assisted by a Guerilla fighting off Assembled 671 | -9/Mines | Core integrity fell below 20% 671 | -9/Mines | Self-destructed Last Messages --------------- Acquired 9 matter. 26-MR6(h) destroyed. Imp. Assault Rifle destroyed. System corrupted by crushing effect (+1). Acquired 15 matter. Acquired 2 matter. Acquired 9 matter. Acquired 6 matter. Destroyed Asb. Hover Unit. Acquired 1 matter. Lgt. Treads severed. as-47556 destroyed. Switching to secondary target: as-70978. System corrupted: Matter fused (-7). Imp. Assault Rifle destroyed. Acquired 8 matter. Med. Laser destroyed. System corrupted by crushing effect (+2). Critical hit (Burn: +80). Knocked back. Map ----- +----------------------------------------------------+ | ??????????????????????????##????????? | | ??????????????????????????# ???????? | | ?????????????????????????## ???????? | | ????????????????????????## #??????? | | ????????????????????????? ??????? | | ?????????????????????????? #?????? | | ??????????????????????????? #????? | | ???????????????????????????? ##??? | | ????????????????????????????# #??? | | ????????????????????????????# #??? | | ??????????????????????????#### [ ##?? | | ??????????????????????????# =%= #?? | | ??????????????????????????# *% ##? | | ??????????????????????????# ##%=% ## | | ??????????????????????????????#[* "# | | ?????????????????????????##???# %#? | | ????????????????????????? ???##% #? | | ????????????????????????# ????#" #? | | ????????????????????????# #????#" #? | | ????????????????????????# #???# # #? | | ????????????????????????# #???### #? | | ????????????????????????#a#?????#= #? | | ????????????????????????# #?????#%%#? | | ????????????????????????# #?????# #? | | ???????????????????????##a###???# #? | | ??????????????????????## @ a##### %#? | | ??????????????????????# aa aa #? | | ??????????????????????# aa a #? | | ??????????????????????## a #######? | | ???????????????????????### ##??????? | | ?????????????????????????####???????? | | ????????????????????????????????????? | | ????????????????????????????????????? | | ????????????????????????????????????? | | ????????????????????????????????????? | | ????????????????????????????????????? | | ????????????????????????????????????? | | ????????????????????????????????????? | | ????????????????????????????????????? | | ????????????????????????????????????? | | | | | | | | | | | | | | | | | | | | | +----------------------------------------------------+ Best States ------------- Heat Dissipation 28 Energy Generation 10 Energy Capacity 125 Matter Stores 300 Matter Capacity 300 Sight Range 16 Terrain Scan Density 10 ECM Strength 1 Armor Coverage 150 Resistance: KI 20 Resistance: TH 20 Resistance: EX 20 Resistance: EM 20 Resistance: I 20 Resistance: S 20 Resistance: P 20 Evasion (%) 50 Recoil Reduction 1 Offensive Hacking 10 Item Schematics ----------------- None Robot Schematics ------------------ None Fabricated ------------ Nothing Alien Tech Used ----------------- None Achievements -------------- Risk Taker Shopping List Challenges ------------ None Game ------ Seed ForceUtilitySlayer Manual? 0 Play Time 00:18:02 Cumulative 1.1 hours Start 2024.04.26 @ 00:15:39 End 2024.04.26 @ 00:37:17 Sessions 1 Manual Loads 0 Difficulty Adventurer Special Mode None Game No. 2 Rogue 0 Adventurer 2 Explorer 0 Win Type - Total 0 Types 0/0/0/0/0/0/0/0/0 Lore% 4 Gallery% 2 Achievement% 3 Wizard Run 0 Options --------- Layout 1 ASCII 0 Keyboard 0 Movement Numpad Keybinds 0 Fullscreen 1 Font 24/Terminus Map View 50x35 Zoom Use 0% Tactical HUD 0 Map Filters NONE Filters NONE Steam 1 RUN: 9d1b4b83-50b9-4f04-8e9a-fb1b3d751d17